bitfinex/quotes_BTCUSD_20250223
["timestamp","ask_amount","ask_price","bid_price","bid_amount"]
[1740345541253,0.31125269,95874.0,95866.0,0.156467]
[1740345541254,0.10264569,95874.0,95866.0,0.156467]
[1740345541465,0.156458,95873.0,95866.0,0.156467]
[1740345541669,0.007,95877.0,95862.0,0.208632]
[1740345541963,0.156463,95869.0,95862.0,0.156473]
[1740345542108,0.156462,95870.0,95863.0,0.156472]
[1740345542514,0.0096747,95869.0,95863.0,0.156472]
[1740345542953,0.0076747,95869.0,95863.0,0.156472]
[1740345543200,0.007,95868.0,95863.0,0.156472]
[1740345543432,0.156502,95845.0,95832.0,0.0017002]
[1740345543653,0.43264932,95845.0,95832.0,0.0017002]
[1740345543854,0.53848088,95845.0,95832.0,0.0017002]
[1740345543976,0.438942,95845.0,95832.0,0.0017002]
[1740345544180,0.16444391,95845.0,95832.0,0.0017002]
[1740345544482,0.156502,95845.0,95832.0,0.0017002]
[1740345544685,0.25914769,95845.0,95832.0,0.0017002]
[1740345544898,0.26614769,95845.0,95844.0,0.0027002]
[1740345545543,0.007,95845.0,95844.0,0.0027002]
[1740345545722,0.163502,95845.0,95844.0,0.0027002]
[1740345546191,0.167502,95845.0,95844.0,0.0027002]
[1740345546687,0.16437182,95845.0,95844.0,0.0017002]
[1740345546891,0.17337182,95845.0,95844.0,0.0017002]
[1740345547327,0.16637182,95845.0,95844.0,0.0017002]
[1740345547652,0.17337182,95845.0,95844.0,0.0017002]
[1740345550539,0.156522,95833.0,95832.0,0.0017002]
[1740345550756,0.30876769,95833.0,95832.0,0.0017002]
[1740345550986,0.156546,95818.0,95817.0,0.0017]
[1740345551180,0.10264569,95818.0,95817.0,0.0017]
[1740345551357,0.25919169,95818.0,95817.0,0.0017]
[1740345551820,0.26464121,95818.0,95817.0,0.0017]
[1740345552057,0.26464121,95818.0,95817.0,0.00178989]
[1740345553007,0.10809521,95818.0,95817.0,0.00178989]
[1740345553405,0.00544952,95818.0,95817.0,0.15833789]
[1740345553621,0.011,95818.0,95817.0,0.15833789]
[1740345553830,0.007,95818.0,95817.0,0.15833789]
[1740345554052,0.208711,95827.0,95818.0,0.156546]
[1740345554252,0.10264569,95826.0,95820.0,0.156543]
[1740345554458,0.25917969,95826.0,95818.0,0.365274]
[1740345554660,0.10264569,95826.0,95820.0,0.156543]
[1740345554875,0.10264569,95826.0,95818.0,0.208729]
[1740345554876,0.10264569,95826.0,95819.0,0.156544]
[1740345555059,0.10264569,95826.0,95818.0,0.208729]
[1740345555239,0.10264569,95826.0,95819.0,0.156545]
[1740345555660,0.10264569,95826.0,95818.0,0.208729]
[1740345555884,0.25917969,95826.0,95819.0,0.156544]
[1740345556081,0.00544862,95828.0,95817.0,0.00178989]
[1740345556287,0.00544862,95828.0,95826.0,0.156533]
[1740345556674,0.007,95827.0,95826.0,0.156533]
[1740345556875,0.004,95826.0,95824.0,0.156536]
[1740345557198,0.00544862,95828.0,95824.0,0.156536]
[1740345557494,0.01644862,95828.0,95824.0,0.156536]
[1740345558085,0.003,95826.0,95819.0,0.156545]
[1740345558313,0.003,95826.0,95823.0,0.156537]
[1740345558486,0.003,95826.0,95819.0,0.156545]
[1740345558701,0.003,95826.0,95825.0,0.156535]
[1740345559079,0.01,95826.0,95825.0,0.156535]
[1740345559580,0.00544862,95828.0,95825.0,0.156535]
[1740345559770,0.00944862,95828.0,95825.0,0.156535]
[1740345559932,0.007,95826.0,95823.0,0.208716]
[1740345560099,0.007,95826.0,95825.0,0.156535]
[1740345560325,0.01,95826.0,95825.0,0.156535]
[1740345560554,0.00544862,95828.0,95826.0,0.156533]
[1740345560943,0.01644862,95828.0,95826.0,0.156533]
[1740345561315,0.01244862,95828.0,95827.0,0.156532]
[1740345562197,0.00544862,95828.0,95827.0,0.156532]
[1740345563279,0.01644862,95828.0,95827.0,0.156532]
[1740345574815,0.01729942,95828.0,95827.0,0.156532]
[1740345576584,0.0118508,95828.0,95827.0,0.156532]
[1740345577311,0.0048508,95828.0,95827.0,0.156532]
[1740345577565,0.0008508,95828.0,95827.0,0.156532]
[1740345577775,0.0038508,95828.0,95827.0,0.156532]
[1740345577980,0.0038508,95828.0,95827.0,0.001]
[1740345578195,0.0008508,95828.0,95827.0,0.001]
[1740345578373,0.26502649,95828.0,95827.0,0.001]
[1740345578970,0.26002649,95828.0,95827.0,0.001]
[1740345579384,0.26402649,95828.0,95827.0,0.001]
[1740345579751,0.156533,95826.0,95825.0,0.0017016]
[1740345579950,0.25917869,95826.0,95825.0,0.0017016]
[1740345582332,0.26417869,95826.0,95825.0,0.0017016]
[1740345582936,0.0507549,95826.0,95825.0,0.0017016]
[1740345583522,0.006,95826.0,95825.0,0.0017016]
[1740345584315,0.162533,95826.0,95825.0,0.0017016]
[1740345585138,0.006,95826.0,95825.0,0.0017016]
[1740345586810,0.162533,95826.0,95825.0,0.0017016]
[1740345587398,0.006,95826.0,95825.0,0.0017016]
[1740345587880,0.162533,95826.0,95825.0,0.0017016]
[1740345589451,0.006,95826.0,95825.0,0.0017016]
[1740345590099,0.162533,95826.0,95825.0,0.0017016]
[1740345590540,0.006,95826.0,95825.0,0.0017016]
[1740345590675,0.162533,95826.0,95825.0,0.0017016]
[1740345591343,0.26632601,95826.0,95825.0,0.0017016]
[1740345591567,0.34337869,95826.0,95825.0,0.0017016]
[1740345591775,0.26936169,95826.0,95825.0,0.0017016]
[1740345592674,0.26336169,95826.0,95825.0,0.0017016]
[1740345593049,0.27436169,95826.0,95825.0,0.0017016]
[1740345598351,0.17297529,95826.0,95825.0,0.0017016]
[1740345598955,0.17382549,95826.0,95825.0,0.0017016]
[1740345600449,0.01729249,95826.0,95825.0,0.0017016]
[1740345601043,0.0118502,95826.0,95825.0,0.1582366]
[1740345601861,0.0048502,95826.0,95825.0,0.2375366]
[1740345602334,0.0078502,95826.0,95825.0,0.2375366]
[1740345602706,0.0038502,95826.0,95825.0,0.2375366]
[1740345603056,0.0038502,95826.0,95825.0,0.2385366]
[1740345603253,0.0038502,95826.0,95825.0,0.2375366]
[1740345603459,0.0008502,95826.0,95825.0,0.2375366]
[1740345603800,0.0018502,95826.0,95825.0,0.2395366]
[1740345616145,0.0018502,95826.0,95825.0,0.1602366]
[1740345620671,0.0018502,95826.0,95825.0,0.0037016]
[1740345620872,0.0018502,95826.0,95825.0,0.1602366]
[1740345623234,0.0018502,95826.0,95825.0,0.0037016]
[1740345623870,0.0018502,95826.0,95825.0,0.1602366]
[1740345625812,0.0018502,95826.0,95825.0,0.0037016]
[1740345626017,0.1583832,95826.0,95825.0,0.0037016]
[1740345627323,0.1583832,95826.0,95825.0,0.0017016]
[1740345627784,0.1623832,95826.0,95825.0,0.0017016]
[1740345627986,0.1613832,95826.0,95825.0,0.0017016]
[1740345628204,0.1623832,95826.0,95825.0,0.0017016]
[1740345628387,0.17053052,95826.0,95825.0,0.0017016]
[1740345628894,0.16353052,95826.0,95825.0,0.0017016]
[1740345629100,0.24343052,95826.0,95825.0,0.0017016]
[1740345629312,0.35036182,95826.0,95825.0,0.0017016]
[1740345629722,0.35536182,95826.0,95825.0,0.0017016]
[1740345635353,0.27546182,95826.0,95825.0,0.0017016]
[1740345635563,0.28294182,95826.0,95825.0,0.0017016]
[1740345637206,0.00461002,95826.0,95825.0,0.0017016]
[1740345637526,0.16114302,95826.0,95825.0,0.0017016]
[1740345644914,0.16199322,95826.0,95825.0,0.0017016]
[1740345647343,0.20386054,95828.0,95825.0,0.0017016]
[1740345647550,0.30650623,95828.0,95825.0,0.0017016]
[1740345647976,0.156533,95826.0,95825.0,0.0017016]
[1740345650129,0.157533,95826.0,95825.0,0.0017016]
[1740345651116,0.162533,95826.0,95825.0,0.0017016]
[1740345655807,0.006,95826.0,95825.0,0.0017016]
[1740345656009,0.162533,95826.0,95825.0,0.0017016]
[1740345656563,0.006,95826.0,95825.0,0.0017016]
[1740345657546,0.006,95826.0,95825.0,0.1582366]
[1740345658649,0.006,95826.0,95825.0,0.2370366]
[1740345659225,0.001,95826.0,95825.0,0.2370366]
[1740345659623,0.0008501,95828.0,95827.0,0.285232]
[1740345661506,0.0038501,95828.0,95827.0,0.285232]
[1740345667973,0.0038501,95828.0,95827.0,0.2869322]
[1740345669985,0.0038501,95828.0,95827.0,0.2879322]
[1740345670197,0.0008501,95828.0,95827.0,0.2879322]
[1740345670633,0.0028501,95828.0,95827.0,0.2879322]
[1740345687012,0.0028501,95828.0,95827.0,0.30050719]
[1740345687432,0.0028501,95828.0,95827.0,0.2879322]
[1740345713389,0.0028501,95828.0,95827.0,0.1592322]
[1740345733230,0.0028501,95828.0,95827.0,0.17882609]
[1740345737650,0.208673,95844.0,95829.0,0.208704]
[1740345737825,0.156512,95839.0,95834.0,0.156519]
[1740345738028,0.156511,95840.0,95834.0,0.156519]
[1740345738437,0.16839903,95840.0,95834.0,0.156519]
[1740345738606,0.16839903,95840.0,95835.0,0.156518]
[1740345739344,0.01488803,95840.0,95837.0,0.156514]
[1740345739773,0.01788803,95840.0,95836.0,0.156517]
[1740345740447,0.01188803,95840.0,95836.0,0.156517]
[1740345740651,0.01888803,95840.0,95836.0,0.156517]
[1740345740825,0.008,95840.0,95836.0,0.156517]
[1740345741277,0.001,95840.0,95836.0,0.156517]
[1740345741479,0.006,95840.0,95836.0,0.156517]
[1740345741720,0.01768222,95840.0,95836.0,0.156517]
[1740345741897,0.01768222,95840.0,95835.0,0.156518]
[1740345741898,0.162511,95840.0,95835.0,0.156518]
[1740345742029,0.161511,95840.0,95835.0,0.156518]
[1740345742234,0.162511,95840.0,95835.0,0.156518]
[1740345742435,0.006,95840.0,95835.0,0.156518]
[1740345742642,0.01804478,95840.0,95835.0,0.156518]
[1740345743092,0.01704478,95840.0,95835.0,0.156518]
[1740345743271,0.01804478,95840.0,95835.0,0.156518]
[1740345743469,0.01804478,95840.0,95836.0,0.156517]
[1740345744105,0.01304478,95840.0,95836.0,0.156517]
[1740345744469,0.01804478,95840.0,95836.0,0.156517]
[1740345744897,0.01304478,95840.0,95836.0,0.156517]
[1740345745092,0.01204478,95840.0,95836.0,0.156517]
[1740345745314,0.005,95840.0,95836.0,0.156517]
[1740345745519,0.01825179,95840.0,95836.0,0.156517]
[1740345752525,0.17476279,95840.0,95836.0,0.156517]
[1740345753695,0.156512,95839.0,95835.0,0.156518]
[1740345754927,0.005,95839.0,95835.0,0.156518]
[1740345755666,0.15653,95828.0,95827.0,0.0017002]
[1740345755872,0.23653,95828.0,95827.0,0.0017002]
[1740345757119,0.28603,95828.0,95827.0,0.0037002]
[1740345757320,0.28703,95828.0,95827.0,0.0037002]
[1740345757736,0.28603,95828.0,95827.0,0.0037002]
[1740345758254,0.29303,95828.0,95827.0,0.0047002]
[1740345758499,0.29303,95828.0,95827.0,0.0027002]
[1740345758725,0.29403,95828.0,95827.0,0.0027002]
[1740345759154,0.29403,95828.0,95827.0,0.0037002]
[1740345759331,0.30003,95828.0,95827.0,0.0037002]
[1740345767107,0.304213,95828.0,95827.0,0.0037002]
[1740345770395,0.174713,95828.0,95827.0,0.0037002]
[1740345770760,0.014,95828.0,95827.0,0.0037002]
[1740345770961,0.17053,95828.0,95827.0,0.0037002]
[1740345771398,0.014,95828.0,95827.0,0.1602322]
[1740345772150,0.007,95828.0,95827.0,0.0027002]
[1740345772270,0.16653,95828.0,95827.0,0.0027002]
[1740345772724,0.003,95828.0,95827.0,0.0017002]
[1740345773062,0.01,95828.0,95827.0,0.0017002]
[1740345773395,0.003,95828.0,95827.0,0.0017002]
[1740345773815,0.006,95828.0,95827.0,0.0017002]
[1740345775534,0.006,95828.0,95827.0,0.1582322]
[1740345781094,0.003,95828.0,95827.0,0.1582322]
[1740345781269,0.01225179,95840.0,95836.0,0.156517]
[1740345781473,0.156509,95841.0,95836.0,0.156517]
[1740345782315,0.21656735,95846.0,95838.0,0.156512]
[1740345782533,0.003,95840.0,95838.0,0.156512]
[1740345782728,0.00789935,95846.0,95829.0,0.208705]
[1740345782935,0.156504,95844.0,95839.0,0.156511]
[1740345783310,0.156506,95843.0,95838.0,0.156512]
[1740345783606,0.01524491,95844.0,95827.0,0.0017002]
[1740345783870,0.01524491,95844.0,95836.0,0.156516]
[1740345783871,0.15651,95841.0,95836.0,0.156516]
[1740345784016,0.164358,95842.0,95836.0,0.156515]
[1740345784229,0.164358,95842.0,95827.0,0.0017002]
[1740345784230,0.004,95841.0,95837.0,0.156514]
[1740345784419,0.164357,95842.0,95837.0,0.156514]
[1740345784989,0.168357,95842.0,95837.0,0.156514]
[1740345785215,0.161357,95842.0,95837.0,0.156514]
[1740345785394,0.004,95841.0,95831.0,0.208698]
[1740345785602,0.004,95841.0,95836.0,0.156517]
[1740345785603,0.16051,95841.0,95836.0,0.156517]
[1740345785841,0.15651,95841.0,95836.0,0.156517]
[1740345787196,0.16351,95841.0,95836.0,0.156517]
[1740345787411,0.007,95841.0,95832.0,0.208698]
[1740345787607,0.163509,95841.0,95836.0,0.156515]
[1740345787832,0.163509,95841.0,95834.0,0.208692]
[1740345788012,0.163509,95841.0,95837.0,0.156515]
[1740345788213,0.160509,95841.0,95837.0,0.156515]
[1740345788411,0.156509,95841.0,95837.0,0.156515]
[1740345788847,0.160509,95841.0,95837.0,0.156515]
[1740345789056,0.004,95841.0,95827.0,0.0017002]
[1740345789397,0.00085,95842.0,95828.0,0.208707]
[1740345789550,0.011,95841.0,95828.0,0.208707]
[1740345789748,0.011,95841.0,95837.0,0.156514]
[1740345790188,0.004,95841.0,95840.0,0.15651]
[1740345790389,0.011,95841.0,95840.0,0.15651]
[1740345790958,0.004,95841.0,95840.0,0.15651]
[1740345791291,0.011,95841.0,95840.0,0.15651]
[1740345791514,0.007,95841.0,95840.0,0.15651]
[1740345792301,0.009,95841.0,95840.0,0.15651]
[1740345792818,0.002,95841.0,95840.0,0.15651]
[1740345792987,0.007,95841.0,95840.0,0.15651]
[1740345804994,0.007,95841.0,95840.0,0.15821]
[1740345814957,0.01530159,95853.0,95848.0,0.156496]
[1740345815162,0.17179059,95853.0,95848.0,0.156496]
[1740345815382,0.0468,95863.0,95840.0,0.0017]
[1740345815594,0.0803,95874.0,95842.0,0.0797]
[1740345815802,0.156484,95857.0,95851.0,0.156492]
[1740345816009,0.156481,95859.0,95852.0,0.15649]
[1740345816188,0.007,95853.0,95852.0,0.156491]
[1740345816540,0.15691476,95857.0,95852.0,0.156491]
[1740345816783,0.00743076,95857.0,95852.0,0.156491]
[1740345817003,0.00743076,95857.0,95856.0,0.156484]
[1740345817413,0.00743076,95857.0,95853.0,0.156488]
[1740345817686,0.003,95856.0,95853.0,0.156488]
[1740345817819,0.00743076,95857.0,95853.0,0.156488]
[1740345818018,0.00743076,95857.0,95842.0,0.0797]
[1740345818019,0.01043076,95857.0,95854.0,0.156487]
[1740345818220,0.00343076,95857.0,95856.0,0.156484]
[1740345818627,0.00843076,95857.0,95856.0,0.156484]
[1740345818878,0.00343076,95857.0,95856.0,0.156484]
[1740345819073,0.00043076,95857.0,95856.0,0.156484]
[1740345819325,0.00243076,95857.0,95856.0,0.156484]
[1740345819472,0.00543076,95857.0,95856.0,0.156484]
[1740345821166,0.00343076,95857.0,95856.0,0.156484]
[1740345821373,0.00543076,95857.0,95856.0,0.156484]
[1740345828792,0.00628076,95857.0,95856.0,0.156484]
[1740345829450,0.00628076,95857.0,95852.0,0.288653]
[1740345829626,0.00628076,95857.0,95855.0,0.156485]
[1740345830013,0.00628076,95857.0,95853.0,0.208652]
[1740345830215,0.00628076,95857.0,95854.0,0.156487]
[1740345830414,0.00628076,95857.0,95853.0,0.208652]
[1740345830655,0.00328076,95857.0,95853.0,0.208652]
[1740345830837,0.00328076,95857.0,95854.0,0.156487]
[1740345831208,0.00928076,95857.0,95855.0,0.001]
[1740345831414,0.156484,95856.0,95855.0,0.001]
[1740345831819,0.156486,95855.0,95849.0,0.156496]
[1740345832050,0.00442808,95857.0,95843.0,0.156505]
[1740345832255,0.156494,95851.0,95844.0,0.156503]
[1740345832470,0.002,95856.0,95840.0,0.0017]
[1740345832669,0.156489,95854.0,95848.0,0.156497]
[1740345832873,0.15649,95853.0,95846.0,0.156499]
[1740345833093,0.15649,95853.0,95847.0,0.156498]
[1740345833529,0.210648,95855.0,95841.0,0.10264569]
[1740345833742,0.156493,95851.0,95841.0,0.10264569]
[1740345834153,0.002,95855.0,95842.0,0.208676]
[1740345834406,0.004,95851.0,95847.0,0.156498]
[1740345834833,0.156489,95853.0,95847.0,0.156498]
[1740345835257,0.004,95851.0,95848.0,0.156497]
[1740345835663,0.156489,95853.0,95848.0,0.156497]
[1740345835889,0.161489,95853.0,95848.0,0.156497]
[1740345836091,0.160489,95853.0,95848.0,0.156497]
[1740345836965,0.160489,95853.0,95841.0,0.10264569]
[1740345836966,0.004,95853.0,95841.0,0.10264569]
[1740345837165,0.156486,95855.0,95850.0,0.156494]
[1740345837369,0.004,95851.0,95850.0,0.156494]
[1740345837796,0.156486,95855.0,95850.0,0.156494]
[1740345838039,0.001,95853.0,95850.0,0.156494]
[1740345838246,0.004,95853.0,95850.0,0.156494]
[1740345838669,0.156486,95855.0,95851.0,0.156492]
[1740345838864,0.156484,95856.0,95851.0,0.156492]
[1740345839091,0.001,95853.0,95851.0,0.156492]
[1740345840573,0.005,95853.0,95851.0,0.156492]
[1740345840775,0.004,95853.0,95851.0,0.156492]
[1740345840982,0.156486,95855.0,95851.0,0.156492]
[1740345841185,0.001,95853.0,95851.0,0.156492]
[1740345841353,0.005,95853.0,95851.0,0.156492]
[1740345841882,0.156486,95855.0,95850.0,0.0016998]
[1740345842079,0.156486,95855.0,95851.0,0.156492]
[1740345842335,0.156486,95856.0,95851.0,0.156492]
[1740345842553,0.161486,95855.0,95851.0,0.156492]
[1740345842727,0.163486,95855.0,95851.0,0.156492]
[1740345843309,0.163486,95855.0,95850.0,0.0016998]
[1740345843549,0.156488,95854.0,95850.0,0.0016998]
[1740345843672,0.002,95855.0,95850.0,0.1581938]
[1740345843876,0.156488,95854.0,95850.0,0.1581938]
[1740345844924,0.157488,95854.0,95850.0,0.1581938]
[1740345845131,0.162488,95854.0,95850.0,0.1581938]
[1740345845353,0.162488,95854.0,95850.0,0.0016998]
[1740345846130,0.006,95854.0,95850.0,0.1581928]
[1740345846339,0.005927,95854.0,95850.0,0.1581928]
[1740345847111,0.005927,95854.0,95851.0,0.156492]
[1740345847555,0.005927,95854.0,95851.0,0.156491]
[1740345847757,0.005927,95854.0,95852.0,0.156491]
[1740345847924,0.000927,95854.0,95852.0,0.156489]
[1740345848136,0.00128076,95857.0,95850.0,0.0016998]
[1740345848345,0.005,95854.0,95850.0,0.0016998]
[1740345848577,0.006,95854.0,95850.0,0.0016998]
[1740345848916,0.005,95854.0,95853.0,0.156489]
[1740345849124,0.006,95854.0,95853.0,0.156489]
[1740345850135,0.001,95854.0,95853.0,0.156489]
[1740345850538,0.005,95854.0,95853.0,0.156489]
[1740345850769,0.006,95854.0,95853.0,0.156489]
[1740345850939,0.15776376,95857.0,95853.0,0.156489]
[1740345851321,0.006,95854.0,95853.0,0.156489]
[1740345851815,0.001,95854.0,95853.0,0.156489]
[1740345852039,0.00128076,95857.0,95851.0,0.208655]
[1740345852262,0.00728076,95857.0,95854.0,0.156487]
[1740345852452,0.0008499,95855.0,95854.0,0.156487]
[1740345854395,0.0058499,95855.0,95854.0,0.156487]
[1740345854693,0.0078499,95855.0,95854.0,0.156487]
[1740345856092,0.0078499,95855.0,95853.0,0.156489]
[1740345856943,0.0028499,95855.0,95854.0,0.156487]
[1740345857147,0.0008499,95855.0,95854.0,0.156487]
[1740345857469,0.0058499,95855.0,95854.0,0.156487]
[1740345857663,0.0058499,95855.0,95852.0,0.208653]
[1740345857664,0.0028499,95855.0,95852.0,0.208653]
[1740345857874,0.0008499,95855.0,95853.0,0.156489]
[1740345858084,0.0058499,95855.0,95853.0,0.156489]
[1740345858284,0.0078499,95855.0,95853.0,0.156489]
[1740345858502,0.0058499,95855.0,95853.0,0.156489]
[1740345858703,0.156491,95852.0,95851.0,0.0016998]
[1740345859255,0.15763832,95852.0,95851.0,0.0016998]
[1740345860422,0.15863832,95852.0,95851.0,0.0016998]
[1740345860757,0.16263832,95852.0,95851.0,0.0016998]
[1740345867239,0.26528401,95852.0,95851.0,0.0016998]
[1740345867404,0.34683669,95852.0,95851.0,0.0016998]
[1740345868269,0.34583669,95852.0,95851.0,0.0016998]
[1740345869707,0.34983669,95852.0,95851.0,0.0016998]
[1740345869921,0.34583669,95852.0,95851.0,0.0016998]
[1740345870137,0.35283669,95852.0,95851.0,0.0026998]
[1740345875519,0.34583669,95852.0,95851.0,0.0016998]
[1740345875697,0.35283669,95852.0,95851.0,0.0016998]
[1740345875915,0.34883669,95852.0,95851.0,0.0016998]
[1740345876054,0.34883669,95852.0,95851.0,0.0026998]
[1740345876256,0.35583669,95852.0,95851.0,0.0026998]
[1740345877728,0.36001869,95852.0,95851.0,0.0026998]
[1740345879310,0.51001869,95852.0,95851.0,0.0026998]
[1740345884979,0.51543648,95852.0,95851.0,0.0026998]
[1740345887530,0.44017648,95852.0,95851.0,0.0026998]
[1740345918054,0.43273648,95852.0,95851.0,0.0026998]
[1740345918262,0.44017648,95852.0,95851.0,0.0026998]
[1740345919888,0.29017648,95852.0,95851.0,0.0026998]
[1740345921391,0.18009079,95852.0,95851.0,0.0026998]
[1740345922481,0.17309079,95852.0,95851.0,0.0016998]
[1740345922957,0.17209079,95852.0,95851.0,0.0026998]
[1740345923198,0.17909079,95852.0,95851.0,0.0026998]
[1740345931149,0.01702326,95852.0,95851.0,0.0026998]
[1740345931492,0.04838626,95852.0,95851.0,0.0026998]
[1740345931758,0.20487726,95852.0,95851.0,0.0026998]
[1740345934634,0.20572736,95852.0,95851.0,0.0026998]
[1740345960825,0.17436436,95852.0,95851.0,0.0026998]
[1740345961034,0.20572836,95852.0,95851.0,0.0026998]
[1740345962422,0.17436436,95852.0,95851.0,0.0026998]
[1740345962787,0.20572736,95852.0,95851.0,0.0026998]
[1740345964858,0.17436436,95852.0,95851.0,0.0026998]
[1740345965062,0.20572736,95852.0,95851.0,0.0026998]
[1740345966529,0.17436436,95852.0,95851.0,0.0026998]
[1740346041365,0.0082899,95854.0,95851.0,0.0026998]
[1740346042149,0.156491,95852.0,95851.0,0.0026998]
[1740346042351,0.156491,95852.0,95851.0,0.0016998]
[1740346042565,0.156491,95852.0,95851.0,0.0026998]
[1740346043272,0.156491,95852.0,95851.0,0.0016998]
[1740346045059,0.159491,95852.0,95851.0,0.0026998]
[1740346051410,0.1603411,95852.0,95851.0,0.0026998]
[1740346063983,0.0038501,95852.0,95851.0,0.0026998]
[1740346064291,0.0038501,95852.0,95851.0,0.0825998]
[1740346064720,0.0038501,95852.0,95851.0,0.24373141]
[1740346064879,0.0038501,95852.0,95851.0,0.08723941]
[1740346065278,0.0058501,95852.0,95851.0,0.24373141]
[1740346065690,0.0028501,95852.0,95851.0,0.24273141]
[1740346066138,0.0078501,95852.0,95851.0,0.24373141]
[1740346066511,0.0018501,95852.0,95851.0,0.24273141]
[1740346066740,0.0018501,95852.0,95851.0,0.08623941]
[1740346066945,0.0058501,95852.0,95851.0,0.08623941]
[1740346069030,0.0058501,95852.0,95851.0,0.24273141]
[1740346076045,0.0058501,95852.0,95851.0,0.08623941]
[1740346079119,0.0058501,95852.0,95851.0,0.24273141]
[1740346081036,0.0058501,95852.0,95851.0,0.08623941]
[1740346088538,0.0058501,95852.0,95851.0,0.00633941]
[1740346096596,0.0058501,95852.0,95851.0,0.16283141]
[1740346096963,0.0058501,95852.0,95851.0,0.00633941]
[1740346099910,0.0058501,95852.0,95851.0,0.16283141]
[1740346102565,0.0058501,95852.0,95851.0,0.00633941]
[1740346104897,0.0058501,95852.0,95851.0,0.16283141]
[1740346113253,0.0058501,95852.0,95851.0,0.16609652]
[1740346114785,0.0058501,95852.0,95851.0,0.16283141]
[1740346125851,0.0058501,95852.0,95851.0,0.24423141]
[1740346126584,0.0018501,95852.0,95851.0,0.24423141]
[1740346128004,0.0018501,95852.0,95851.0,0.24623141]
[1740346128901,0.0018501,95852.0,95851.0,0.24949646]
[1740346133453,0.0018501,95852.0,95851.0,0.24485685]
[1740346140076,0.0018501,95852.0,95851.0,0.25003464]
[1740346141505,0.15,95884.0,95851.0,0.09354264]
[1740346141700,0.156464,95869.0,95863.0,0.156472]
[1740346142000,0.2499316,95870.0,95864.0,0.00550576]
[1740346142136,0.156462,95870.0,95864.0,0.00550576]
[1740346142841,0.158462,95870.0,95864.0,0.00550576]
[1740346143586,0.17845942,95870.0,95864.0,0.00550576]
[1740346143920,0.156463,95869.0,95864.0,0.00550576]
[1740346144130,0.01499742,95870.0,95864.0,0.00550576]
[1740346144531,0.01999742,95870.0,95864.0,0.00650576]
[1740346144746,0.01999742,95870.0,95866.0,0.156468]
[1740346144944,0.00801214,95867.0,95864.0,0.00650576]
[1740346145150,0.00801214,95867.0,95865.0,0.156469]
[1740346145466,0.00801214,95867.0,95864.0,0.15747]
[1740346145674,0.00801214,95867.0,95866.0,0.156468]
[1740346146243,0.00801214,95867.0,95864.0,0.209628]
[1740346146442,0.01001214,95867.0,95866.0,0.156468]
[1740346147223,0.01001214,95867.0,95866.0,0.157468]
[1740346147579,0.01001214,95867.0,95866.0,0.156468]
[1740346147919,0.01401214,95867.0,95866.0,0.157468]
[1740346148127,0.01601214,95867.0,95866.0,0.157468]
[1740346151074,0.01601214,95867.0,95866.0,0.001]
[1740346151275,0.01601214,95867.0,95866.0,0.157468]
[1740346153841,0.01601214,95867.0,95866.0,0.16296535]
[1740346154631,0.238457,95873.0,95866.0,0.16296535]
[1740346154632,0.21772029,95873.0,95866.0,0.16296535]
[1740346154880,0.156457,95873.0,95866.0,0.16296535]
[1740346155509,0.156457,95873.0,95866.0,0.16196535]
[1740346155800,0.158457,95873.0,95866.0,0.16196535]
[1740346156007,0.158456,95873.0,95867.0,0.156466]
[1740346156416,0.002,95873.0,95868.0,0.00549731]
[1740346156592,0.00799701,95869.0,95868.0,0.00549731]
[1740346156795,0.00799701,95869.0,95867.0,0.156466]
[1740346156977,0.00799701,95869.0,95868.0,0.00549731]
[1740346157425,0.00884701,95869.0,95868.0,0.00549731]
[1740346157634,0.00884701,95869.0,95866.0,0.156467]
[1740346157836,0.00884701,95869.0,95868.0,0.00549731]
[1740346158137,0.00884701,95869.0,95868.0,0.00649731]
[1740346158693,0.00884701,95869.0,95868.0,0.00549731]
[1740346159057,0.00884701,95869.0,95866.0,0.156467]
[1740346159256,0.00884701,95869.0,95868.0,0.00549731]
[1740346159821,0.00884701,95869.0,95866.0,0.156467]
[1740346160016,0.01184701,95869.0,95868.0,0.00549731]
[1740346160186,0.01184701,95869.0,95867.0,0.00549733]
[1740346160397,0.00884701,95869.0,95868.0,0.00549731]
[1740346160776,0.01184701,95869.0,95868.0,0.001]
[1740346161119,0.00884701,95869.0,95868.0,0.00549731]
[1740346162079,0.01184701,95869.0,95868.0,0.00549731]
[1740346163397,0.00884701,95869.0,95868.0,0.00549731]
[1740346163825,0.01184701,95869.0,95868.0,0.00649731]
[1740346164633,0.01184701,95869.0,95868.0,0.001]
[1740346164876,0.01184701,95869.0,95868.0,0.00649731]
[1740346165051,0.01184701,95869.0,95868.0,0.001]
[1740346165234,0.01184701,95869.0,95868.0,0.00649731]
[1740346165429,0.01184701,95869.0,95868.0,0.001]
[1740346165634,0.01184701,95869.0,95868.0,0.00650091]
[1740346165893,0.01184701,95869.0,95868.0,0.001]
[1740346166011,0.01184701,95869.0,95868.0,0.00650091]
[1740346166216,0.01184701,95869.0,95868.0,0.001]
[1740346166420,0.01184701,95869.0,95868.0,0.00650091]
[1740346166622,0.01184701,95869.0,95868.0,0.001]
[1740346166839,0.01184701,95869.0,95868.0,0.00650091]
[1740346167124,0.01184701,95869.0,95868.0,0.001]
[1740346167249,0.01184701,95869.0,95868.0,0.00650091]
[1740346168863,0.01184701,95869.0,95868.0,0.16296591]
[1740346174838,0.01184701,95869.0,95868.0,0.00650091]
[1740346178415,0.01184701,95869.0,95868.0,0.16296591]
[1740346178617,0.01184701,95869.0,95868.0,0.00650091]
[1740346179027,0.01184701,95869.0,95868.0,0.16296591]
[1740346179227,0.01184701,95869.0,95868.0,0.00650091]
[1740346180710,0.01184701,95869.0,95868.0,0.16296591]
[1740346182945,0.01184701,95869.0,95868.0,0.16466591]
[1740346188832,0.00884701,95869.0,95868.0,0.16366591]
[1740346189323,0.01184701,95869.0,95868.0,0.16366591]
[1740346200609,0.00385,95869.0,95868.0,0.16366591]
[1740346201443,0.00385,95869.0,95868.0,0.00720091]
[1740346201878,0.00385,95869.0,95868.0,0.16366591]
[1740346202254,0.00085,95869.0,95868.0,0.16366591]